bitfinex/quotes_ETHUSD_20250424
["timestamp","ask_amount","ask_price","bid_price","bid_amount"]
[1745477651495,4.776,1770.2,1769.9,0.7359695]
[1745477651696,5.6495326,1770.1,1769.7,6.38648921]
[1745477652297,5.64972244,1770.0,1769.7,0.7359695]
[1745477652747,5.64954924,1770.1,1769.7,6.38663093]
[1745477653731,5.64954924,1770.1,1769.7,0.7359695]
[1745477654032,5.64974412,1770.0,1769.7,0.7359695]
[1745477654735,4.776,1770.2,1769.7,0.7359695]
[1745477654909,6.12728435,1770.1,1769.7,0.7359695]
[1745477655532,11.77698351,1770.1,1769.7,0.7359695]
[1745477655840,5.64975142,1770.0,1769.7,0.7359695]
[1745477656344,6.41125142,1770.0,1769.7,0.7359695]
[1745477656630,5.65008272,1769.9,1769.6,0.7123]
[1745477656831,5.65008272,1769.9,1769.5,9.3871395]
[1745477657427,5.65008272,1769.9,1769.5,11.44003224]
[1745477657636,0.7615,1770.0,1769.6,5.65093661]
[1745477657801,5.64957721,1770.1,1769.7,7.0988587]
[1745477659535,5.64974762,1770.0,1769.7,0.7359695]
[1745477659851,5.64974762,1770.0,1769.6,5.65093661]
[1745477660660,5.64964506,1770.1,1769.7,5.65066372]
[1745477660863,6.76987957,1770.1,1769.7,5.65066372]
[1745477661030,12.41952852,1770.1,1769.7,5.65066372]
[1745477662860,5.64972201,1770.0,1769.6,5.65078129]
[1745477663264,5.64972201,1770.0,1769.6,5.65077959]
[1745477665578,5.65185172,1769.4,1769.1,0.7123]
[1745477665870,5.65096986,1769.7,1769.3,0.7123]
[1745477666158,11.30188246,1769.7,1769.3,0.7123]
[1745477666463,5.65093885,1769.7,1769.3,0.7123]
[1745477667071,5.65103082,1769.6,1769.3,0.7123]
[1745477667970,11.20420976,1769.8,1769.4,6.38758991]
[1745477668121,5.65021411,1769.9,1769.4,6.38739112]
[1745477668122,5.65022736,1769.9,1769.4,6.38739112]
[1745477668326,5.65022736,1769.9,1769.5,6.36349675]
[1745477671421,4.777,1770.1,1769.7,0.7123]
[1745477671573,10.42657956,1770.1,1769.7,6.36294946]
[1745477672118,5.64973127,1770.0,1769.7,0.7123]
[1745477672274,10.42657956,1770.1,1769.7,0.7123]
[1745477672476,10.42657956,1770.1,1769.7,6.36292782]
[1745477672674,10.42657956,1770.1,1769.7,7.63788925]
[1745477672974,10.42656678,1770.1,1769.7,7.63788925]
[1745477673284,16.07621843,1770.1,1769.7,7.63788925]
[1745477673473,10.42656678,1770.1,1769.7,7.63788925]
[1745477673903,5.64921114,1770.2,1769.8,5.6502398]
[1745477674207,11.29856749,1770.2,1769.8,7.71501408]
[1745477674785,5.64921114,1770.2,1769.8,7.71501408]
[1745477675019,11.29856863,1770.2,1769.8,7.71501408]
[1745477675212,5.64921114,1770.2,1769.8,7.71501408]
[1745477675389,11.29858598,1770.2,1769.8,7.71501408]
[1745477675980,5.64940333,1770.1,1769.8,7.71501408]
[1745477681135,5.64940333,1770.1,1769.8,2.06477428]
[1745477685145,5.64940333,1770.1,1769.8,7.7151258]
[1745477685868,5.65003672,1769.9,1769.7,0.7123]
[1745477686861,5.64989719,1770.0,1769.7,0.7123]
[1745477687161,5.65004545,1769.9,1769.7,0.7123]
[1745477687316,0.7667,1769.9,1769.5,0.7123]
[1745477687517,5.65051467,1769.8,1769.5,0.7123]
[1745477688753,0.7667,1769.9,1769.5,0.7123]
[1745477688916,0.7667,1769.9,1769.3,0.7359695]
[1745477688917,5.65052665,1769.8,1769.3,3.7123]
[1745477689237,5.65079721,1769.7,1769.3,9.3641137]
[1745477690948,5.65079721,1769.7,1769.3,9.36422506]
[1745477692550,11.30175815,1769.7,1769.3,3.7123]
[1745477692791,5.65106381,1769.6,1769.3,3.7123]
[1745477693143,5.65087711,1769.7,1769.3,3.7123]
[1745477693339,5.65052984,1769.8,1769.3,9.36403115]
[1745477693524,5.65052984,1769.8,1769.4,5.65152424]
[1745477693725,5.65052984,1769.8,1769.4,6.38749374]
[1745477694355,11.30115881,1769.8,1769.4,6.38749374]
[1745477694555,11.30115881,1769.8,1769.4,0.7359695]
[1745477695661,5.65072272,1769.7,1769.4,0.7359695]
[1745477696680,0.7667,1769.9,1769.4,0.7359695]
[1745477696854,11.24263048,1770.0,1769.6,0.7359695]
[1745477697039,5.65003691,1769.9,1769.6,0.7359695]
[1745477697576,5.650571,1769.8,1769.5,0.7123]
[1745477697738,5.65072964,1769.7,1769.5,0.7123]
[1745477698174,5.65072964,1769.7,1769.3,9.36401448]
[1745477698370,5.65072964,1769.7,1769.4,0.7359695]
[1745477698572,5.65055263,1769.8,1769.4,6.38735758]
[1745477701471,5.65018913,1769.9,1769.4,6.38735758]
[1745477701472,5.65021828,1769.9,1769.5,6.36361239]
[1745477701660,5.65021828,1769.9,1769.5,0.7123]
[1745477701977,5.65040237,1769.8,1769.5,0.7123]
[1745477703198,5.65068052,1769.7,1769.5,0.7123]
[1745477703382,5.65068052,1769.7,1769.4,1.4482695]
[1745477704109,5.65040237,1769.8,1769.4,2.10054422]
[1745477704283,5.65040237,1769.8,1769.4,7.75186723]
[1745477705297,5.65069305,1769.7,1769.4,2.10054422]
[1745477705591,5.65069305,1769.7,1769.4,1.4482695]
[1745477706860,5.65085531,1769.7,1769.4,1.4482695]
[1745477707395,11.30182841,1769.7,1769.4,0.7123]
[1745477707604,5.65099673,1769.6,1769.4,0.7123]
[1745477707767,5.65099673,1769.6,1769.3,3.7123]
[1745477710497,5.65110303,1769.6,1769.3,3.7123]
[1745477711997,5.65110303,1769.6,1769.1,1.4482695]
[1745477711998,5.65186025,1769.4,1769.1,1.4482695]
[1745477712211,6.46502418,1769.5,1769.1,7.10084027]
[1745477715799,12.11659166,1769.5,1769.1,7.10084027]
[1745477716002,6.46502418,1769.5,1769.1,7.10084027]
[1745477716304,6.46502418,1769.5,1769.1,1.4482695]
[1745477716467,5.65215458,1769.3,1769.1,1.4482695]
[1745477716663,5.65177266,1769.4,1769.1,1.4482695]
[1745477718806,5.65102781,1769.6,1769.1,1.4482695]
[1745477718966,5.65102781,1769.6,1769.2,5.65215935]
[1745477719701,11.30228669,1769.6,1769.2,5.65215935]
[1745477720411,5.65102781,1769.6,1769.3,0.7123]
[1745477720813,5.6508403,1769.7,1769.3,1.4482695]
[1745477720990,5.65047587,1769.8,1769.5,0.7359695]
[1745477721183,6.7805273,1769.8,1769.5,0.7359695]
[1745477722419,5.65047587,1769.8,1769.5,0.7359695]
[1745477723886,5.65027097,1769.9,1769.5,6.38726809]
[1745477724086,5.65027097,1769.9,1769.6,0.7123]
[1745477727534,5.65004412,1769.9,1769.6,0.7123]
[1745477728232,5.65043186,1769.8,1769.6,0.7123]
[1745477728895,5.65022628,1769.9,1769.6,0.7123]
[1745477729227,11.3005331,1769.9,1769.6,0.7123]
[1745477729523,5.65022628,1769.9,1769.6,0.7123]
[1745477729832,5.65046096,1769.8,1769.6,0.7123]
[1745477740262,5.65067525,1769.7,1769.5,0.7123]
[1745477740449,5.65046096,1769.8,1769.5,0.7123]
[1745477740650,5.65046096,1769.8,1769.4,7.76841758]
[1745477740962,5.65071108,1769.7,1769.4,3.93650228]
[1745477741150,5.65071108,1769.7,1769.4,9.58813015]
[1745477742227,5.6505531,1769.8,1769.4,9.58813015]
[1745477743159,0.7736,1770.0,1769.4,0.7123]
[1745477743350,5.65081496,1769.7,1769.4,0.7123]
[1745477746066,5.65106364,1769.6,1769.4,0.7123]
[1745477746377,5.65164102,1769.4,1769.2,0.7123]
[1745477748676,5.65148497,1769.5,1769.2,0.7123]
[1745477751470,5.65119438,1769.6,1769.3,1.40448472]
[1745477756785,5.6506926,1769.7,1769.5,1.40448472]
[1745477757569,11.30163915,1769.7,1769.5,1.40448472]
[1745477758288,11.30163915,1769.7,1769.4,0.7123]
[1745477758887,5.65035597,1769.8,1769.2,1.40448472]
[1745477759049,5.65035597,1769.8,1769.2,2.11678472]
[1745477759050,5.65143335,1769.5,1769.2,2.11678472]
[1745477759391,5.65099457,1769.6,1769.2,7.76886363]
[1745477759882,5.65099457,1769.6,1769.2,7.05656363]
[1745477760083,5.65082129,1769.7,1769.4,2.11678472]
[1745477760418,5.65100285,1769.6,1769.4,2.11678472]
[1745477762667,5.65100285,1769.6,1769.4,0.7123]
[1745477762868,5.65121739,1769.6,1769.3,0.7123]
[1745477763070,11.30250117,1769.6,1769.3,0.7123]
[1745477763270,5.65135144,1769.5,1769.3,0.7123]
[1745477763890,5.65163332,1769.4,1769.3,0.7123]
[1745477764059,5.65135144,1769.5,1769.2,0.7123]
[1745477764678,11.30291351,1769.5,1769.2,0.7123]
[1745477765065,5.65166276,1769.4,1769.2,0.7123]
[1745477765261,5.65166276,1769.4,1769.1,5.11678472]
[1745477765461,5.65218783,1769.3,1769.0,3.7123]
[1745477765666,5.65184083,1769.4,1769.0,9.36502657]
[1745477765985,5.65184083,1769.4,1769.1,1.40448472]
[1745477769801,5.65184083,1769.4,1769.0,9.36497964]
[1745477770096,5.65163332,1769.4,1769.1,1.40448472]
[1745477771089,11.30355509,1769.4,1769.1,1.40448472]
[1745477771387,5.65163332,1769.4,1769.1,1.40448472]
[1745477771597,11.30354443,1769.4,1769.1,1.40448472]
[1745477771827,5.65163332,1769.4,1769.1,1.40448472]
[1745477771982,11.3035688,1769.4,1769.1,1.40448472]
[1745477772183,5.65163332,1769.4,1769.1,1.40448472]
[1745477772518,6.42431124,1769.0,1768.9,0.4071088]
[1745477772675,5.65291124,1769.0,1768.9,0.4071088]
[1745477773179,6.42414963,1769.1,1768.9,0.4071088]
[1745477773681,5.65238177,1769.2,1768.9,0.4071088]
[1745477774125,11.30492843,1769.2,1768.9,0.4071088]
[1745477774317,5.65263336,1769.1,1768.9,1.81159352]
[1745477775013,6.44266271,1769.2,1768.9,1.81159352]
[1745477775185,5.65238177,1769.2,1768.9,1.81159352]
[1745477775815,11.30495133,1769.2,1768.9,1.81159352]
[1745477776002,5.65238177,1769.2,1768.9,1.81159352]
[1745477777719,11.30495419,1769.2,1768.9,1.81159352]
[1745477778013,5.65238177,1769.2,1768.9,1.81159352]
[1745477778920,5.65277798,1769.1,1768.9,1.81159352]
[1745477781225,5.65277798,1769.1,1768.9,0.4071088]
[1745477781394,5.65291124,1769.0,1768.9,0.4071088]
[1745477786326,6.47191124,1769.0,1768.9,0.4071088]
[1745477786500,6.47191124,1769.0,1768.5,3.0]
[1745477786501,5.65437893,1768.6,1768.1,0.7123]
[1745477786701,5.65404748,1768.7,1768.4,1.40448472]
[1745477786905,6.47270497,1768.8,1768.4,1.40448472]
[1745477787116,6.47270497,1768.8,1768.4,7.05919435]
[1745477787320,6.47270497,1768.8,1768.4,1.40448472]
[1745477787321,12.12651899,1768.8,1768.4,1.40448472]
[1745477788223,12.12652648,1768.8,1768.4,1.40448472]
[1745477788538,6.47270497,1768.8,1768.4,7.0592703]
[1745477789011,5.65339637,1768.9,1768.6,1.40448472]
[1745477789347,5.6535951,1768.8,1768.6,1.40448472]
[1745477789999,5.6535951,1768.8,1768.5,0.7123]
[1745477790479,5.65387656,1768.7,1768.5,0.7123]
[1745477791218,5.65387656,1768.7,1768.4,5.11678472]
[1745477792534,5.65387656,1768.7,1768.4,2.11678472]
[1745477792736,5.65427862,1768.6,1768.4,1.40448472]
[1745477794037,6.86672758,1768.7,1768.4,1.40448472]
[1745477795048,6.47276389,1768.8,1768.4,7.05928555]
[1745477795431,5.65388373,1768.7,1768.4,1.40448472]
[1745477795630,6.47276386,1768.8,1768.4,1.40448472]
[1745477795834,6.47276386,1768.8,1768.4,7.05930358]
[1745477796037,12.12658953,1768.8,1768.4,7.05930358]
[1745477796336,5.65387864,1768.7,1768.4,1.40448472]
[1745477796507,11.30806751,1768.7,1768.4,1.40448472]
[1745477796921,5.65387864,1768.7,1768.4,1.40448472]
[1745477797117,5.6543576,1768.6,1768.3,0.7123]
[1745477797323,5.6543576,1768.6,1768.3,2.11678472]
[1745477797714,6.4394321,1768.6,1768.3,2.11678472]
[1745477798157,0.7850745,1768.6,1768.3,7.77190021]
[1745477798362,0.7850745,1768.6,1768.3,2.11678472]
[1745477798553,1.5467745,1768.6,1768.1,0.7123]
[1745477798845,5.65466147,1768.5,1768.1,2.11678472]
[1745477799046,6.3746814,1768.5,1768.1,7.77243758]
[1745477799425,6.3746814,1768.5,1768.1,0.7123]
[1745477800314,6.3746814,1768.5,1768.1,6.36808355]
[1745477800521,12.02947997,1768.5,1768.1,6.36808355]
[1745477801115,12.02944942,1768.5,1768.1,6.36808355]
[1745477801343,12.02945507,1768.5,1768.1,6.36808355]
[1745477801537,6.3746814,1768.5,1768.1,6.36808355]
[1745477801743,12.02947445,1768.5,1768.1,6.36808355]
[1745477801944,12.02947445,1768.5,1768.1,0.7123]
[1745477802132,12.02947188,1768.5,1768.1,0.7123]
[1745477802337,5.65485039,1768.4,1768.1,0.7123]
[1745477803318,12.02965733,1768.5,1768.1,0.7123]
[1745477804252,6.85786425,1768.4,1768.1,0.7123]
[1745477804766,1.20296573,1768.4,1768.1,6.36806286]
[1745477804930,5.65471987,1768.5,1768.1,6.36806286]
[1745477806249,5.65471987,1768.5,1768.1,6.36785931]
[1745477806751,6.41607046,1768.6,1768.2,5.65543141]
[1745477806954,5.65437046,1768.6,1768.2,6.39385299]
[1745477807342,11.30882752,1768.6,1768.2,6.39385299]
[1745477807734,5.65437046,1768.6,1768.2,6.39385299]
[1745477808256,5.65452569,1768.5,1768.2,0.73842158]
[1745477809664,5.65470978,1768.5,1768.1,0.7123]
[1745477810066,5.65485707,1768.4,1768.1,0.7123]
[1745477810868,5.65468443,1768.5,1768.1,6.3680526]
[1745477811363,6.78558833,1768.5,1768.1,6.3680526]
[1745477811574,6.78558833,1768.5,1768.1,6.36786165]
[1745477811936,5.65468443,1768.5,1768.1,12.02342309]
[1745477812264,5.65440783,1768.6,1768.1,12.02342309]
[1745477813068,4.777,1768.7,1768.4,0.7123]
[1745477813267,5.65371208,1768.8,1768.4,7.10549396]
[1745477813434,11.30754596,1768.8,1768.4,1.45072158]
[1745477813639,5.65390204,1768.7,1768.4,0.7123]
[1745477814471,5.6540045,1768.7,1768.4,0.7123]
[1745477815265,6.4549045,1768.7,1768.3,0.7123]
[1745477815483,6.4549045,1768.7,1768.3,6.3674139]
[1745477816071,12.10905487,1768.7,1768.3,6.3674139]
[1745477817171,5.6542207,1768.6,1768.3,0.7123]
[1745477820565,11.308639,1768.6,1768.3,0.7123]
[1745477820870,5.65418975,1768.6,1768.3,0.7123]
[1745477821246,5.65418975,1768.6,1768.3,2.11864425]
[1745477822679,5.5327,1768.5,1767.8,0.7123]
[1745477822975,5.5327,1768.5,1768.0,0.7123]
[1745477822976,5.6553104,1768.3,1768.0,0.7123]
[1745477823177,5.65593434,1768.1,1767.7,3.7123]
[1745477823381,5.65593434,1768.1,1767.7,10.77571263]
[1745477824463,6.41136079,1768.2,1767.7,12.41888325]
[1745477824668,5.65581442,1768.1,1767.7,12.41888325]
[1745477825181,5.65644342,1767.9,1767.7,5.11864425]
[1745477825388,5.65601102,1768.1,1767.7,3.7123]
[1745477825546,11.31206262,1768.1,1767.7,3.7123]
[1745477825754,5.65601102,1768.1,1767.7,3.7123]
[1745477825949,5.65601102,1768.1,1767.7,9.36935757]
[1745477826151,5.65601102,1768.1,1767.7,3.7123]
[1745477826585,5.65601102,1768.1,1767.7,9.36933394]
[1745477827386,11.3120635,1768.1,1767.7,9.36933394]
[1745477827553,11.31209344,1768.1,1767.7,3.7123]
[1745477827753,5.65601102,1768.1,1767.7,3.7123]
[1745477828055,5.65601102,1768.1,1767.7,9.36927376]
[1745477829362,5.65601102,1768.1,1767.7,9.36922432]
[1745477829562,5.65601102,1768.1,1767.8,0.73880003]
[1745477830082,6.41132727,1768.2,1767.8,0.73880003]
[1745477830384,5.65589806,1768.1,1767.8,0.73880003]
[1745477830982,5.65620449,1768.0,1767.7,3.7123]
[1745477831187,5.65623129,1768.0,1767.7,3.7123]
[1745477832381,5.65644914,1767.9,1767.5,10.43448405]
[1745477832581,7.21547986,1767.9,1767.5,11.14678405]
[1745477833290,7.21547986,1767.9,1767.5,6.36978405]
[1745477835008,5.65738854,1767.6,1767.5,0.7123]
[1745477835155,5.65777203,1767.5,1767.2,1.85820883]
[1745477835358,5.65755207,1767.6,1767.2,7.51674367]
[1745477835596,5.65755207,1767.6,1767.3,3.0]
[1745477835912,5.65724086,1767.7,1767.3,5.65833628]
[1745477836119,6.85164359,1767.7,1767.3,5.65833628]
[1745477837805,6.85164359,1767.7,1767.3,6.39713631]
[1745477838397,6.85164359,1767.7,1767.3,12.05524245]
[1745477838601,6.41256174,1767.8,1767.4,6.37028373]
[1745477839095,5.65718334,1767.7,1767.3,6.39690617]
[1745477839269,5.65718424,1767.7,1767.3,9.39714856]
[1745477840810,5.65718424,1767.7,1767.3,6.39714856]
[1745477841014,6.86416254,1767.7,1767.3,6.39714856]
[1745477841304,5.65568693,1768.2,1767.7,5.6570685]
[1745477841461,0.8007,1768.4,1768.0,0.73880003]
[1745477841669,6.45540144,1768.5,1768.2,0.73880003]
[1745477841871,9.44602958,1768.6,1768.2,1.45110003]
[1745477842211,9.44606604,1768.6,1768.2,1.45110003]
[1745477842361,3.79168763,1768.6,1768.4,0.73880003]
[1745477843298,5.6540337,1768.7,1768.4,0.73880003]
[1745477844169,5.65430865,1768.6,1768.2,1.45110003]
[1745477844368,6.21973951,1768.6,1768.2,1.45110003]
[1745477844701,0.56543086,1768.6,1768.2,7.10648819]
[1745477844899,5.65369217,1768.8,1768.4,0.73880003]
[1745477845066,11.30754691,1768.8,1768.4,0.73880003]
[1745477845409,5.65387908,1768.7,1768.4,0.73880003]
[1745477846064,5.65387908,1768.7,1768.3,0.7123]
[1745477846065,6.45476888,1768.7,1768.3,0.7123]
[1745477846315,7.66561662,1768.7,1768.3,0.7123]
[1745477846899,7.66561662,1768.7,1768.3,6.36740714]
[1745477848403,6.45476888,1768.7,1768.3,6.36740714]
[1745477848711,0.8007,1768.7,1768.3,6.36724674]
[1745477848919,5.65370848,1768.8,1768.4,5.65477055]
[1745477849301,5.65370848,1768.8,1768.4,6.39357058]
[1745477849764,5.65378735,1768.8,1768.4,0.73880003]
[1745477850612,5.6538903,1768.7,1768.4,0.73880003]
[1745477851328,5.65371364,1768.8,1768.4,0.73880003]
[1745477851535,5.65371364,1768.8,1768.4,6.39359897]
[1745477852645,5.65387165,1768.7,1768.4,0.73880003]
[1745477852847,5.65368506,1768.8,1768.4,6.39360917]
[1745477853434,5.65368506,1768.8,1768.4,7.66969025]
[1745477854810,5.65404912,1768.7,1768.3,0.7123]
[1745477855009,5.65404912,1768.7,1768.3,6.36741253]
[1745477857237,5.65404912,1768.7,1768.3,0.7123]
[1745477857537,5.65422493,1768.6,1768.3,0.7123]
[1745477864326,5.65474026,1768.5,1768.3,0.7123]
[1745477864531,5.65437083,1768.6,1768.3,0.7123]
[1745477865249,5.654046,1768.7,1768.3,6.36739159]
[1745477865452,5.654046,1768.7,1768.3,5.65509159]
[1745477865686,6.42833459,1768.6,1768.2,5.65544729]
[1745477866694,5.65527366,1768.3,1768.0,0.7123]
[1745477866898,11.31069888,1768.3,1768.0,0.7123]
[1745477867075,5.65558605,1768.2,1768.0,0.7123]
[1745477867870,5.65558605,1768.2,1767.9,3.0]
[1745477868777,5.65581046,1768.1,1767.8,1.45110003]
[1745477868979,5.65598463,1768.1,1767.7,3.0]
[1745477869295,5.65623643,1768.0,1767.6,7.10832311]
[1745477870410,5.65647135,1767.9,1767.6,1.45110003]
[1745477870574,5.65692452,1767.8,1767.5,0.7123]
[1745477870780,5.65606908,1768.1,1767.6,6.39599401]
[1745477871111,5.65623989,1768.0,1767.6,0.73880003]
[1745477871309,5.65591952,1768.1,1767.6,6.39615019]
[1745477871516,5.65591952,1768.1,1767.7,5.65703016]
[1745477871814,11.3119707,1768.1,1767.7,5.65703016]
[1745477872017,5.65612804,1768.0,1767.6,6.39603874]
[1745477872171,5.65612804,1768.0,1767.6,7.67262858]
[1745477872899,6.42592804,1768.0,1767.6,2.01538987]
[1745477873216,5.65648908,1767.9,1767.6,2.01538987]
[1745477873411,5.65648908,1767.9,1767.6,0.73880003]
[1745477873777,6.42608237,1768.0,1767.6,6.39617633]
[1745477874196,12.08248341,1768.0,1767.6,6.39617633]
[1745477874415,12.08250558,1768.0,1767.6,0.73880003]
[1745477874919,6.42608237,1768.0,1767.6,6.39618581]
[1745477875516,5.65628237,1768.0,1767.6,6.39618581]
[1745477875837,6.4257038,1768.1,1767.6,7.97265712]
[1745477876113,6.4257038,1768.1,1767.7,6.36923204]
[1745477879616,12.0817592,1768.1,1767.7,6.36923204]
[1745477879828,5.6561173,1768.0,1767.7,6.36923204]
[1745477880026,0.7698,1768.1,1767.5,3.0]
[1745477880193,5.65653063,1767.9,1767.6,0.7123]
[1745477880387,5.65653063,1767.9,1767.6,6.36968478]
[1745477880589,5.65626483,1768.0,1767.6,7.08053326]
[1745477882332,11.31264597,1768.0,1767.6,7.08053326]
[1745477882631,5.65650001,1767.9,1767.6,1.42314848]
[1745477884215,5.65630729,1768.0,1767.6,7.08051416]
[1745477885127,5.65630729,1768.0,1767.7,0.73880003]
[1745477885333,5.65644717,1767.9,1767.7,0.73880003]
[1745477885532,5.65644717,1767.9,1767.6,0.7123]
[1745477885731,11.31312853,1767.9,1767.6,0.7123]
[1745477885903,5.65644717,1767.9,1767.6,0.7123]
[1745477886105,5.65644717,1767.9,1767.4,8.65789073]
[1745477886106,1.13126688,1767.9,1767.4,10.10899076]
[1745477886426,6.41303071,1767.8,1767.4,10.10912704]
[1745477887134,0.756,1767.8,1767.5,5.65764821]
[1745477887440,5.65658167,1767.9,1767.5,5.65764821]
[1745477888126,5.65675666,1767.8,1767.5,5.65764821]
[1745477888642,5.65675666,1767.8,1767.4,10.10893976]
[1745477888843,5.65675666,1767.8,1767.4,11.68561446]
[1745477889339,5.65675666,1767.8,1767.4,17.34341891]
[1745477889641,5.65675666,1767.8,1767.5,5.65769522]
[1745477889842,5.65675666,1767.8,1767.4,11.68563516]
[1745477890549,5.65675666,1767.8,1767.4,8.68563516]
[1745477890705,5.65675666,1767.8,1767.4,14.3434971]
[1745477891302,5.65648884,1767.9,1767.5,5.65766485]
[1745477891754,11.31320385,1767.9,1767.5,5.65766485]
[1745477891950,5.65676997,1767.8,1767.4,8.68571862]
[1745477893554,5.65676997,1767.8,1767.4,7.10900775]
[1745477893750,5.65657676,1767.9,1767.6,0.73880003]
[1745477893751,5.65655856,1767.9,1767.6,0.73880003]
[1745477894045,5.65828935,1767.4,1767.2,0.4071088]
[1745477894196,5.65834889,1767.3,1767.2,0.4071088]
[1745477894915,6.41427548,1767.4,1767.2,0.4071088]
[1745477895121,12.0726169,1767.4,1767.2,0.4071088]
[1745477895315,6.41427548,1767.4,1767.2,0.4071088]
[1745477895903,12.07262415,1767.4,1767.2,0.4071088]
[1745477896107,5.65834889,1767.3,1767.2,0.4071088]
[1745477897206,6.86561133,1767.3,1767.2,0.4071088]
[1745477897920,7.65161133,1767.3,1767.2,0.4071088]
[1745477898241,12.42961133,1767.3,1767.2,0.4071088]
[1745477901213,15.42961133,1767.3,1767.2,0.4071088]
[1745477901852,15.42961133,1767.3,1767.2,1e-08]
[1745477903542,7.65161133,1767.3,1767.2,1e-08]
[1745477905457,13.59761133,1767.3,1767.2,1e-08]
[1745477905611,7.65161133,1767.3,1767.2,1e-08]
[1745477907947,11.39041136,1767.3,1767.2,1e-08]
[1745477915449,6.86561133,1767.3,1767.2,1e-08]
[1745477915748,5.65834889,1767.3,1767.2,1e-08]
[1745477918251,6.46504889,1767.3,1767.2,1e-08]
[1745477920048,9.46504889,1767.3,1767.2,1e-08]
[1745477920744,13.43834889,1767.3,1767.2,1e-08]
[1745477921957,14.22804889,1767.3,1767.2,1e-08]
[1745477935951,20.17404889,1767.3,1767.2,1e-08]
[1745477936157,14.22804889,1767.3,1767.2,1e-08]
[1745477940987,14.96684892,1767.3,1767.2,1e-08]
[1745477941345,14.22804889,1767.3,1767.2,1e-08]
[1745477943292,13.43834889,1767.3,1767.2,1e-08]
[1745477947006,5.65834889,1767.3,1767.2,1e-08]
[1745477947166,11.31659789,1767.4,1767.2,0.71230001]
[1745477947363,5.65826096,1767.4,1767.2,1e-08]
[1745477947568,5.65826096,1767.4,1767.3,0.7123]
[1745477947971,14.22852044,1767.5,1767.3,0.7123]
[1745477948291,3.79168763,1767.5,1767.3,0.7123]
[1745477948704,9.44942579,1767.5,1767.4,0.7123]
[1745477950197,3.79168763,1767.5,1767.4,0.7123]
[1745477951985,3.79168763,1767.5,1767.4,6.37032874]
[1745477952188,3.79168763,1767.5,1767.4,9.37032874]
[1745477954260,4.92919392,1768.0,1767.6,5.65737163]
[1745477954261,5.65626987,1768.0,1767.6,5.65737163]
[1745477954455,5.65626987,1768.0,1767.8,0.7123]
[1745477957366,5.65642853,1767.9,1767.8,0.7123]
[1745477958281,5.65723336,1767.7,1767.4,0.7123]
[1745477958599,5.65684557,1767.8,1767.5,0.7123]
[1745477958759,5.65662845,1767.9,1767.5,0.7123]
[1745477958959,5.65662845,1767.9,1767.5,1.34932121]
[1745477959161,5.65678389,1767.8,1767.6,0.7123]
[1745477959660,5.65626238,1768.0,1767.6,0.7123]
[1745477959878,5.65626238,1768.0,1767.7,0.7123]
[1745477961274,10.43498436,1768.1,1767.8,0.7123]
[1745477961460,5.6561189,1768.0,1767.8,1.3492334]
[1745477961662,5.6561189,1768.0,1767.8,0.7123]
[1745477962300,10.43490588,1768.1,1767.8,0.7123]
[1745477962497,5.6562536,1768.0,1767.8,0.7123]
[1745477962698,10.43491369,1768.1,1767.8,0.7123]
[1745477963005,5.65612071,1768.0,1767.8,0.7123]
[1745477963894,10.43496115,1768.1,1767.8,0.7123]
[1745477964200,10.43496115,1768.1,1767.8,1.34923566]
[1745477964406,10.43496115,1768.1,1767.8,0.7123]
[1745477964703,10.43502091,1768.1,1767.8,0.7123]
[1745477964908,5.65612799,1768.0,1767.8,0.7123]
[1745477970739,5.65582996,1768.1,1767.8,0.7123]
[1745477971069,5.65582996,1768.1,1767.8,6.36904556]
[1745477971275,5.65582996,1768.1,1767.5,1.37582124]
[1745477971276,10.432378,1768.3,1768.0,0.7123]
[1745477971810,5.655378,1768.3,1768.0,0.7123]
[1745477972028,5.65563484,1768.2,1768.0,0.7123]
[1745477972487,5.6547115,1768.5,1768.2,0.7123]
[1745477972696,0.7579,1768.8,1768.2,0.7123]
[1745477972697,5.65441828,1768.6,1768.2,0.7123]
[1745477973008,5.65441828,1768.6,1768.3,0.7123]
[1745477973184,5.65401913,1768.7,1768.3,7.00420758]
[1745477973916,23.87421342,1768.9,1768.3,1.34907653]
[1745477974112,5.65418836,1768.7,1768.3,1.34907653]
[1745477974290,5.6547248,1768.5,1768.3,0.7123]
[1745477976514,5.65439241,1768.6,1768.3,0.7123]
[1745477977279,11.30889715,1768.6,1768.3,0.7123]
[1745477977482,5.65453184,1768.5,1768.3,0.7123]
[1745477977812,6.22012148,1768.5,1768.1,5.65559657]
[1745477977998,5.65431102,1768.6,1768.2,0.7123]
[1745477978197,11.30881874,1768.6,1768.2,0.7123]
[1745477978430,5.65457659,1768.5,1768.2,0.7123]
[1745477978930,5.65431102,1768.6,1768.2,0.7123]
[1745477980506,5.65431102,1768.6,1768.2,6.36772674]
[1745477980822,5.65431102,1768.6,1768.2,7.57005405]
[1745477981026,5.65431102,1768.6,1768.2,1.91462731]
[1745477981426,5.65431102,1768.6,1768.2,7.57006201]
[1745477981934,5.65431102,1768.6,1768.2,1.91462731]
[1745477982095,5.65431102,1768.6,1768.2,7.56997728]
[1745477984434,5.65389442,1768.7,1768.4,0.7123]
[1745477985230,11.30806538,1768.7,1768.4,0.7123]
[1745477985396,6.46480564,1768.8,1768.4,0.7123]
[1745477985595,5.65422798,1768.6,1768.4,0.7123]
[1745477986433,5.65413883,1768.7,1768.4,0.7123]
[1745477986743,5.65426628,1768.6,1768.4,0.7123]
[1745477987837,5.65426628,1768.6,1768.2,5.65531268]
[1745477988044,6.21969291,1768.6,1768.2,6.36775411]
[1745477989229,6.21976249,1768.6,1768.2,6.36773014]
[1745477991548,0.56542663,1768.6,1768.3,5.65513649]
[1745477991708,11.30822237,1768.7,1768.3,5.65513649]
[1745477991909,5.65387007,1768.7,1768.2,0.7123]
[1745477992109,5.65442197,1768.6,1768.2,0.7123]
[1745477992648,5.65510808,1768.4,1768.1,0.7123]
[1745477992851,5.65529466,1768.3,1767.9,1.34920456]
[1745477993148,5.65559159,1768.2,1767.9,0.7123]
[1745477993934,5.6557937,1768.1,1767.9,0.7123]
[1745477994251,5.65559159,1768.2,1767.9,0.7123]
[1745477994752,6.22081066,1768.3,1767.9,0.7123]
[1745477994918,6.22081066,1768.3,1767.9,6.36870773]
[1745477995318,4.774,1768.5,1767.9,0.7123]
[1745477995555,5.65495329,1768.4,1768.0,5.65595519]
[1745477995912,11.31068286,1768.3,1767.9,6.36855559]
[1745477996108,5.65559432,1768.2,1767.9,0.7123]
[1745477996348,11.31080714,1768.3,1767.9,6.3687059]
[1745477996524,6.86182015,1768.3,1767.9,6.3687059]
[1745477996848,5.65549651,1768.2,1767.9,0.7123]
[1745477997053,6.86183786,1768.3,1767.9,6.36872361]
[1745477997965,5.65548105,1768.2,1767.9,0.7123]
[1745477998179,6.86181919,1768.3,1767.9,6.36870493]